[Event "*** Titled Tuesday Blitz"]
[Site "Chess.com"]
[Date "2020.02.04"]
[Round "9"]
[White "WPWPWP-2015"]
[Black "Grieve72"]
[Result "0-1"]
[WhiteElo "2498"]
[BlackElo "2345"]
[TimeControl "180+2"]
[EndTime "11:13:39 PST"]
[Termination "Grieve72 won by resignation"]

1. e4 {[%clk 0:03:01.9]} 1... c5 {[%clk 0:03:00.5]} 2. Nf3 {[%clk 0:03:01.8]}
2... e6 {[%clk 0:03:01.6]} 3. d4 {[%clk 0:03:01.8]} 3... cxd4 {[%clk 0:03:03.5]}
4. Nxd4 {[%clk 0:03:02.4]} 4... Nc6 {[%clk 0:03:05.4]} 5. Nc3 {[%clk 0:03:02.1]}
5... Qc7 {[%clk 0:03:05.3]} 6. Be2 {[%clk 0:03:02.1]} 6... a6 {[%clk 0:03:05.3]}
7. O-O {[%clk 0:03:02.7]} 7... Nf6 {[%clk 0:03:05.4]} 8. Be3 {[%clk 0:03:03.1]}
8... Bb4 {[%clk 0:03:05.8]} 9. Na4 {[%clk 0:03:03.4]} 9... Be7 {[%clk
0:03:05.1]} 10. Nxc6 {[%clk 0:03:02.9]} 10... bxc6 {[%clk 0:03:05.2]} 11. Nb6
{[%clk 0:03:02.9]} 11... Rb8 {[%clk 0:03:05.2]} 12. Nxc8 {[%clk 0:03:04.1]}
12... Qxc8 {[%clk 0:03:06.5]} 13. e5 {[%clk 0:03:04]} 13... Nd5 {[%clk
0:03:05.1]} 14. Bc1 {[%clk 0:03:04.7]} 14... O-O {[%clk 0:02:57.8]} 15. c4
{[%clk 0:03:04.6]} 15... Nb6 {[%clk 0:02:52.9]} 16. Bd3 {[%clk 0:03:04.6]} 16...
c5 {[%clk 0:02:44.8]} 17. Qh5 {[%clk 0:02:44.8]} 17... g6 {[%clk 0:02:44.2]} 18.
Qe2 {[%clk 0:02:44.6]} 18... d5 {[%clk 0:02:39]} 19. cxd5 {[%clk 0:02:36.4]}
19... exd5 {[%clk 0:02:32.6]} 20. f4 {[%clk 0:02:36.2]} 20... c4 {[%clk
0:02:29.1]} 21. Bc2 {[%clk 0:02:33.2]} 21... Bc5+ {[%clk 0:02:25.9]} 22. Kh1
{[%clk 0:02:33.2]} 22... d4 {[%clk 0:02:26.5]} 23. Be4 {[%clk 0:02:29.4]} 23...
d3 {[%clk 0:02:19.3]} 24. Qf3 {[%clk 0:02:27.2]} 24... Bd4 {[%clk 0:02:06.5]}
25. f5 {[%clk 0:02:18.2]} 25... Bxe5 {[%clk 0:01:53.5]} 26. Bh6 {[%clk
0:02:18.1]} 26... Bxb2 {[%clk 0:01:29.2]} 27. Rab1 {[%clk 0:01:52.7]} 27... Bg7
{[%clk 0:01:00.5]} 28. Bxg7 {[%clk 0:01:50.4]} 28... Kxg7 {[%clk 0:01:02.4]} 29.
Qe3 {[%clk 0:01:49.6]} 29... Nd7 {[%clk 0:00:58]} 30. Qd4+ {[%clk 0:01:17]}
30... f6 {[%clk 0:00:39.5]} 31. Rbc1 {[%clk 0:01:17.5]} 31... Ne5 {[%clk
0:00:32.8]} 32. fxg6 {[%clk 0:00:57.7]} 32... hxg6 {[%clk 0:00:29.5]} 33. Bxd3
{[%clk 0:00:56.3]} 33... Nxd3 {[%clk 0:00:19.8]} 34. Rxc4 {[%clk 0:00:56.7]}
34... Qd8 {[%clk 0:00:20.9]} 35. Qc3 {[%clk 0:00:49.9]} 35... Ne5 {[%clk
0:00:19.2]} 36. Rc7+ {[%clk 0:00:46]} 36... Rf7 {[%clk 0:00:19.6]} 37. Rc5
{[%clk 0:00:44.1]} 37... Qd6 {[%clk 0:00:15.5]} 38. h3 {[%clk 0:00:39.6]} 38...
Rbb7 {[%clk 0:00:13.7]} 39. Qa5 {[%clk 0:00:22.5]} 39... Rfc7 {[%clk 0:00:13.6]}
40. Rd5 {[%clk 0:00:23.1]} 40... Qe6 {[%clk 0:00:15]} 41. Rd8 {[%clk 0:00:17.3]}
41... Rc2 {[%clk 0:00:10.3]} 42. Qa3 {[%clk 0:00:16.1]} 42... Rf7 {[%clk
0:00:07]} 43. Rd6 {[%clk 0:00:12.2]} 43... Qc4 {[%clk 0:00:05.7]} 44. Re1 {[%clk
0:00:11.2]} 44... Rc3 {[%clk 0:00:03.4]} 45. Qa5 {[%clk 0:00:09.8]} 45... Rd3
{[%clk 0:00:03.6]} 46. Qd8 {[%clk 0:00:07.9]} 46... Rxd6 {[%clk 0:00:04.2]} 47.
Qxd6 {[%clk 0:00:08.5]} 47... Rd7 {[%clk 0:00:05.4]} 48. Qb8 {[%clk 0:00:07.8]}
48... Qxa2 {[%clk 0:00:05.6]} 49. Rxe5 {[%clk 0:00:07.4]} 49... Qa1+ {[%clk
0:00:06.5]} 50. Kh2 {[%clk 0:00:07.6]} 50... Qxe5+ {[%clk 0:00:07.3]} 51. Qxe5
{[%clk 0:00:08.7]} 51... fxe5 {[%clk 0:00:09.2]} 0-1

[Event "*** Titled Tuesday Blitz"]
[Site "Chess.com"]
[Date "2020.02.04"]
[Round "9"]
[White "Nikolakis2014"]
[Black "Shield12"]
[Result "0-1"]
[WhiteElo "2721"]
[BlackElo "2895"]
[TimeControl "180+2"]
[EndTime "11:13:49 PST"]
[Termination "Shield12 won by checkmate"]

1. Nf3 {[%clk 0:03:01.9]} 1... c5 {[%clk 0:02:59.8]} 2. c4 {[%clk 0:03:01.9]}
2... Nf6 {[%clk 0:03:00.6]} 3. Nc3 {[%clk 0:03:03]} 3... Nc6 {[%clk 0:03:01.8]}
4. e3 {[%clk 0:03:03.5]} 4... g6 {[%clk 0:03:00.5]} 5. d4 {[%clk 0:03:04.1]}
5... cxd4 {[%clk 0:03:01.9]} 6. exd4 {[%clk 0:03:05.3]} 6... d5 {[%clk
0:03:03.2]} 7. cxd5 {[%clk 0:03:06.6]} 7... Nxd5 {[%clk 0:03:03.7]} 8. Qb3
{[%clk 0:03:07.6]} 8... Nxc3 {[%clk 0:03:03.4]} 9. Bc4 {[%clk 0:03:07.6]} 9...
Nd5 {[%clk 0:03:03.7]} 10. Bxd5 {[%clk 0:03:08.1]} 10... e6 {[%clk 0:03:05]} 11.
Bxc6+ {[%clk 0:03:09]} 11... bxc6 {[%clk 0:03:06.9]} 12. Be3 {[%clk 0:03:07.4]}
12... Bg7 {[%clk 0:02:58.8]} 13. Qa3 {[%clk 0:02:58.5]} 13... Qe7 {[%clk
0:02:58.3]} 14. Qxe7+ {[%clk 0:02:54.7]} 14... Kxe7 {[%clk 0:03:00.2]} 15. Rc1
{[%clk 0:02:54.7]} 15... Bd7 {[%clk 0:02:48.3]} 16. O-O {[%clk 0:02:52.8]} 16...
Rhb8 {[%clk 0:02:43.5]} 17. b3 {[%clk 0:02:53.9]} 17... a5 {[%clk 0:02:43.1]}
18. Ne5 {[%clk 0:02:54.7]} 18... Ra6 {[%clk 0:02:41]} 19. Rc4 {[%clk 0:02:50.2]}
19... Rb5 {[%clk 0:02:37.1]} 20. Nd3 {[%clk 0:02:36]} 20... Be8 {[%clk
0:02:20.6]} 21. Rfc1 {[%clk 0:02:33.7]} 21... Rd5 {[%clk 0:02:12.7]} 22. h3
{[%clk 0:02:31.4]} 22... g5 {[%clk 0:02:07.4]} 23. Nc5 {[%clk 0:02:13.3]} 23...
Rb6 {[%clk 0:02:05.1]} 24. Na4 {[%clk 0:02:13]} 24... Rb4 {[%clk 0:01:58.3]} 25.
Nc3 {[%clk 0:02:03]} 25... Rd7 {[%clk 0:01:29.6]} 26. Bxg5+ {[%clk 0:01:51.4]}
26... Kf8 {[%clk 0:01:30.2]} 27. Ne2 {[%clk 0:01:18]} 27... Rb5 {[%clk
0:01:15.9]} 28. Be3 {[%clk 0:01:17.4]} 28... Rd8 {[%clk 0:01:10.7]} 29. Nc3
{[%clk 0:01:13.6]} 29... Rb4 {[%clk 0:01:11]} 30. Ne2 {[%clk 0:01:14.1]} 30...
Rb5 {[%clk 0:01:11.8]} 31. f3 {[%clk 0:01:10.7]} 31... Ra8 {[%clk 0:00:56.5]}
32. Nc3 {[%clk 0:01:06.2]} 32... Rb4 {[%clk 0:00:56.5]} 33. Na4 {[%clk
0:01:04.2]} 33... Rxc4 {[%clk 0:00:54.7]} 34. Rxc4 {[%clk 0:01:04.2]} 34... Ke7
{[%clk 0:00:54.4]} 35. Kf2 {[%clk 0:01:04.6]} 35... Rb8 {[%clk 0:00:53.4]} 36.
Nc5 {[%clk 0:01:03.7]} 36... f5 {[%clk 0:00:41.1]} 37. Nd3 {[%clk 0:01:02.3]}
37... Rb5 {[%clk 0:00:40.1]} 38. h4 {[%clk 0:01:00.2]} 38... Kd6 {[%clk
0:00:38.4]} 39. Bf4+ {[%clk 0:01:00.1]} 39... Kd5 {[%clk 0:00:36.6]} 40. Ke3
{[%clk 0:00:51.1]} 40... Bf6 {[%clk 0:00:34]} 41. Bg3 {[%clk 0:00:47.2]} 41...
c5 {[%clk 0:00:23]} 42. Nf4+ {[%clk 0:00:42.1]} 42... Kc6 {[%clk 0:00:20.8]} 43.
Nxe6 {[%clk 0:00:41.4]} 43... Bf7 {[%clk 0:00:21.2]} 44. d5+ {[%clk 0:00:20.4]}
44... Kb6 {[%clk 0:00:20.9]} 45. Bd6 {[%clk 0:00:19.4]} 45... Kb7 {[%clk
0:00:19.9]} 46. Kf4 {[%clk 0:00:19]} 46... Bxh4 {[%clk 0:00:19.7]} 47. Kxf5
{[%clk 0:00:19.9]} 47... Be1 {[%clk 0:00:19.5]} 48. Bxc5 {[%clk 0:00:18.9]}
48... Bg6+ {[%clk 0:00:19.7]} 49. Kf6 {[%clk 0:00:19]} 49... Bg3 {[%clk
0:00:20]} 50. Ke7 {[%clk 0:00:19.5]} 50... Ka6 {[%clk 0:00:19.8]} 51. Kd7 {[%clk
0:00:19.7]} 51... Rb7+ {[%clk 0:00:20.6]} 52. Kc8 {[%clk 0:00:17.7]} 52... Be8
{[%clk 0:00:21.6]} 53. Nf8 {[%clk 0:00:10.8]} 53... Rb8# {[%clk 0:00:22.6]} 0-1

[Event "*** Titled Tuesday Blitz"]
[Site "Chess.com"]
[Date "2020.02.04"]
[Round "9"]
[White "Ariadna_Atreides"]
[Black "zurzan"]
[Result "1-0"]
[WhiteElo "2058"]
[BlackElo "1974"]
[TimeControl "180+2"]
[EndTime "11:14:49 PST"]
[Termination "Ariadna_Atreides won on time"]

1. d4 {[%clk 0:02:20]} 1... d6 {[%clk 0:02:57.9]} 2. Nf3 {[%clk 0:02:19.3]} 2...
f5 {[%clk 0:02:56.9]} 3. c4 {[%clk 0:02:15.1]} 3... Nf6 {[%clk 0:02:57.1]} 4. d5
{[%clk 0:02:10]} 4... g6 {[%clk 0:02:57.1]} 5. Nc3 {[%clk 0:02:08.5]} 5... Bg7
{[%clk 0:02:57.9]} 6. g3 {[%clk 0:02:06]} 6... O-O {[%clk 0:02:58.2]} 7. Bg2
{[%clk 0:02:07.2]} 7... e5 {[%clk 0:02:58.6]} 8. dxe6 {[%clk 0:02:04.7]} 8...
Bxe6 {[%clk 0:02:59.5]} 9. Ng5 {[%clk 0:01:59.3]} 9... Bc8 {[%clk 0:02:59]} 10.
Qb3 {[%clk 0:01:55.4]} 10... c6 {[%clk 0:02:51.5]} 11. O-O {[%clk 0:01:45.2]}
11... h6 {[%clk 0:02:38.2]} 12. Nh3 {[%clk 0:01:44.3]} 12... g5 {[%clk
0:02:35.5]} 13. f4 {[%clk 0:01:26]} 13... g4 {[%clk 0:02:35.6]} 14. Nf2 {[%clk
0:01:22.7]} 14... Qb6 {[%clk 0:02:21.7]} 15. Qxb6 {[%clk 0:01:13.4]} 15... axb6
{[%clk 0:02:22.1]} 16. e4 {[%clk 0:01:14.9]} 16... fxe4 {[%clk 0:02:05.3]} 17.
Ncxe4 {[%clk 0:00:56.1]} 17... Nxe4 {[%clk 0:02:07.2]} 18. Bxe4 {[%clk
0:00:46.8]} 18... Na6 {[%clk 0:01:53.4]} 19. Rb1 {[%clk 0:00:34.2]} 19... Nc5
{[%clk 0:01:53.7]} 20. Bg2 {[%clk 0:00:22]} 20... Rxa2 {[%clk 0:01:53.8]} 21. b4
{[%clk 0:00:18.8]} 21... Na4 {[%clk 0:01:40.1]} 22. Ne4 {[%clk 0:00:19.7]} 22...
Nc3 {[%clk 0:01:28.2]} 23. Nxc3 {[%clk 0:00:17.2]} 23... Bxc3 {[%clk 0:01:30.1]}
24. Rd1 {[%clk 0:00:15.8]} 24... Ra4 {[%clk 0:01:15.1]} 25. Rxd6 {[%clk
0:00:09.8]} 25... Rxb4 {[%clk 0:01:16.2]} 26. Rxb4 {[%clk 0:00:06.8]} 26... Bxb4
{[%clk 0:01:18.1]} 27. Rxh6 {[%clk 0:00:07]} 27... Bc5+ {[%clk 0:01:17.3]} 28.
Kf1 {[%clk 0:00:06.6]} 28... Kg7 {[%clk 0:01:16.2]} 29. Rh4 {[%clk 0:00:04]}
29... Rd8 {[%clk 0:01:04]} 30. Bb2+ {[%clk 0:00:04.4]} 30... Kg6 {[%clk
0:01:04.9]} 31. h3 {[%clk 0:00:04.8]} 31... gxh3 {[%clk 0:00:56.3]} 32. Bxh3
{[%clk 0:00:05]} 32... Bxh3+ {[%clk 0:00:55.1]} 33. Rxh3 {[%clk 0:00:05.8]}
33... Rd2 {[%clk 0:00:45]} 34. Bc3 {[%clk 0:00:03.4]} 34... Rc2 {[%clk
0:00:43.2]} 35. g4 {[%clk 0:00:03.8]} 35... Rf2+ {[%clk 0:00:42.7]} 36. Ke1
{[%clk 0:00:03.1]} 36... Rxf4 {[%clk 0:00:44.6]} 37. Rg3 {[%clk 0:00:03.3]}
37... Rxc4 {[%clk 0:00:44.7]} 38. Bd2 {[%clk 0:00:02.8]} 38... Re4+ {[%clk
0:00:39.9]} 39. Kd1 {[%clk 0:00:02.5]} 39... Bd4 {[%clk 0:00:37.1]} 40. g5
{[%clk 0:00:03.1]} 40... c5 {[%clk 0:00:35.4]} 41. Rh3 {[%clk 0:00:03.1]} 41...
Bg7 {[%clk 0:00:31]} 42. Rb3 {[%clk 0:00:03.4]} 42... Re6 {[%clk 0:00:29.6]} 43.
Rb5 {[%clk 0:00:04.2]} 43... Bd4 {[%clk 0:00:19.7]} 44. Bf4 {[%clk 0:00:04.7]}
44... c4 {[%clk 0:00:14.6]} 45. Kc2 {[%clk 0:00:05]} 45... Rc6 {[%clk
0:00:14.1]} 46. Bd2 {[%clk 0:00:04.7]} 46... Bf2 {[%clk 0:00:12.7]} 47. Rd5
{[%clk 0:00:04.7]} 47... Bh4 {[%clk 0:00:11.9]} 48. Be3 {[%clk 0:00:04.3]} 48...
Re6 {[%clk 0:00:07.6]} 49. Bf4 {[%clk 0:00:04.4]} 49... Re4 {[%clk 0:00:07.5]}
50. Rd6+ {[%clk 0:00:04.5]} 50... Kf5 {[%clk 0:00:07.3]} 51. Bd2 {[%clk
0:00:04.2]} 51... Bxg5 {[%clk 0:00:03.9]} 52. Rxb6 {[%clk 0:00:04.2]} 52... Bxd2
{[%clk 0:00:03.9]} 53. Kxd2 {[%clk 0:00:04.3]} 53... Ke5 {[%clk 0:00:05.5]} 54.
Rxb7 {[%clk 0:00:04.4]} 54... Kd5 {[%clk 0:00:06.8]} 55. Rd7+ {[%clk 0:00:05]}
55... Kc5 {[%clk 0:00:07.8]} 56. Rh7 {[%clk 0:00:05.4]} 56... Kb4 {[%clk
0:00:08.6]} 57. Rh3 {[%clk 0:00:05.5]} 57... Rg4 {[%clk 0:00:05.2]} 58. Kc2
{[%clk 0:00:05.1]} 58... Rg2+ {[%clk 0:00:05.9]} 59. Kc1 {[%clk 0:00:05.8]}
59... c3 {[%clk 0:00:05.4]} 60. Rh8 {[%clk 0:00:05.7]} 1-0

[Event "*** Titled Tuesday Blitz"]
[Site "Chess.com"]
[Date "2020.02.04"]
[Round "9"]
[White "TrimitziosP7"]
[Black "Witik"]
[Result "0-1"]
[WhiteElo "2773"]
[BlackElo "2625"]
[TimeControl "180+2"]
[EndTime "11:15:32 PST"]
[Termination "Witik won by checkmate"]

1. Nf3 {[%clk 0:03:01.9]} 1... Nf6 {[%clk 0:02:59.2]} 2. b3 {[%clk 0:03:02.1]}
2... d5 {[%clk 0:03:00.2]} 3. Bb2 {[%clk 0:02:58.4]} 3... Bg4 {[%clk 0:03:01.7]}
4. e3 {[%clk 0:02:55.3]} 4... Nbd7 {[%clk 0:03:02.5]} 5. d4 {[%clk 0:02:48.6]}
5... e6 {[%clk 0:03:01.7]} 6. Be2 {[%clk 0:02:49.5]} 6... Be7 {[%clk 0:02:57.2]}
7. O-O {[%clk 0:02:50.4]} 7... O-O {[%clk 0:02:58.3]} 8. Ne5 {[%clk 0:02:51.4]}
8... Bxe2 {[%clk 0:02:51.1]} 9. Qxe2 {[%clk 0:02:53.3]} 9... Nxe5 {[%clk
0:02:47.8]} 10. dxe5 {[%clk 0:02:51.7]} 10... Nd7 {[%clk 0:02:45.8]} 11. c4
{[%clk 0:02:52.3]} 11... c6 {[%clk 0:02:37.4]} 12. cxd5 {[%clk 0:02:52.2]} 12...
exd5 {[%clk 0:02:33.3]} 13. f4 {[%clk 0:02:52.2]} 13... Re8 {[%clk 0:02:11.8]}
14. Nd2 {[%clk 0:02:48.4]} 14... Bf8 {[%clk 0:02:04.9]} 15. Nf3 {[%clk
0:02:45.5]} 15... Nc5 {[%clk 0:02:04.8]} 16. Rfd1 {[%clk 0:02:44.2]} 16... Ne4
{[%clk 0:01:58.9]} 17. Nd2 {[%clk 0:02:44.1]} 17... Nc5 {[%clk 0:01:48]} 18. e4
{[%clk 0:02:40.4]} 18... d4 {[%clk 0:01:43.8]} 19. Nf3 {[%clk 0:02:40.5]} 19...
d3 {[%clk 0:01:44.5]} 20. Qe3 {[%clk 0:02:41.7]} 20... Qa5 {[%clk 0:01:11.7]}
21. Kh1 {[%clk 0:02:34.9]} 21... Rad8 {[%clk 0:01:07.7]} 22. f5 {[%clk
0:02:20.9]} 22... Qb4 {[%clk 0:00:56.3]} 23. Nd2 {[%clk 0:02:18.3]} 23... a5
{[%clk 0:00:45.8]} 24. a3 {[%clk 0:02:18.6]} 24... Qb5 {[%clk 0:00:46.4]} 25. a4
{[%clk 0:02:10.6]} 25... Qb4 {[%clk 0:00:43.3]} 26. Rab1 {[%clk 0:01:24]} 26...
Nxb3 {[%clk 0:00:37.3]} 27. Nxb3 {[%clk 0:01:17.6]} 27... Qxb3 {[%clk
0:00:38.5]} 28. e6 {[%clk 0:01:18.1]} 28... Qxa4 {[%clk 0:00:24.4]} 29. Rxd3
{[%clk 0:01:04]} 29... Rxd3 {[%clk 0:00:22]} 30. Qxd3 {[%clk 0:01:05.9]} 30...
fxe6 {[%clk 0:00:23.7]} 31. f6 {[%clk 0:01:03.6]} 31... Qb5 {[%clk 0:00:22.4]}
32. Qf3 {[%clk 0:01:00.5]} 32... gxf6 {[%clk 0:00:19.3]} 33. Qxf6 {[%clk
0:01:00.4]} 33... e5 {[%clk 0:00:20.9]} 34. Rf1 {[%clk 0:00:59.2]} 34... Qc4
{[%clk 0:00:14.9]} 35. Bxe5 {[%clk 0:00:56]} 35... Qxf1+ {[%clk 0:00:07.8]} 36.
Qxf1 {[%clk 0:00:56.6]} 36... Rxe5 {[%clk 0:00:09.7]} 37. Qc4+ {[%clk
0:00:53.4]} 37... Kg7 {[%clk 0:00:07.2]} 38. Qd4 {[%clk 0:00:50.2]} 38... Kf6
{[%clk 0:00:08]} 39. g4 {[%clk 0:00:45.1]} 39... Ke6 {[%clk 0:00:03.6]} 40. Qb6
{[%clk 0:00:38.2]} 40... Rb5 {[%clk 0:00:04]} 41. Qc7 {[%clk 0:00:34.4]} 41...
Be7 {[%clk 0:00:05.2]} 42. Qc8+ {[%clk 0:00:31.6]} 42... Kd6 {[%clk 0:00:06.2]}
43. Qb8+ {[%clk 0:00:26.7]} 43... Ke6 {[%clk 0:00:07.3]} 44. Qc8+ {[%clk
0:00:24.3]} 44... Kd6 {[%clk 0:00:08.4]} 45. Qa8 {[%clk 0:00:18.6]} 45... c5
{[%clk 0:00:05.5]} 46. Kg2 {[%clk 0:00:16]} 46... c4 {[%clk 0:00:05.9]} 47. Qc8
{[%clk 0:00:13.7]} 47... Rc5 {[%clk 0:00:06.9]} 48. Qxb7 {[%clk 0:00:10.5]}
48... c3 {[%clk 0:00:07.8]} 49. e5+ {[%clk 0:00:07.7]} 49... Rxe5 {[%clk
0:00:05.9]} 50. Qb6+ {[%clk 0:00:08.4]} 50... Kd7 {[%clk 0:00:07.2]} 51. Qb7+
{[%clk 0:00:08.9]} 51... Kd6 {[%clk 0:00:07.6]} 52. Qb8+ {[%clk 0:00:06.8]}
52... Kd5 {[%clk 0:00:08.1]} 53. Qb7+ {[%clk 0:00:05.4]} 53... Kd4 {[%clk
0:00:09.5]} 54. Qd7+ {[%clk 0:00:05.4]} 54... Kc4 {[%clk 0:00:08.8]} 55. Qc6+
{[%clk 0:00:04.5]} 55... Bc5 {[%clk 0:00:09.9]} 56. Qa4+ {[%clk 0:00:04.7]}
56... Bb4 {[%clk 0:00:08.6]} 57. Qc6+ {[%clk 0:00:05.6]} 57... Kb3 {[%clk
0:00:10]} 58. Qf3 {[%clk 0:00:03.3]} 58... Rc5 {[%clk 0:00:09]} 59. g5 {[%clk
0:00:02.6]} 59... a4 {[%clk 0:00:10.3]} 60. h4 {[%clk 0:00:03.4]} 60... a3
{[%clk 0:00:11.3]} 61. h5 {[%clk 0:00:03.3]} 61... Rxg5+ {[%clk 0:00:12.3]} 62.
Kh3 {[%clk 0:00:04.3]} 62... Rc5 {[%clk 0:00:14.2]} 63. Qf7+ {[%clk 0:00:04.9]}
63... Kb2 {[%clk 0:00:15.4]} 64. Qf2+ {[%clk 0:00:04.2]} 64... c2 {[%clk
0:00:16]} 65. Kg4 {[%clk 0:00:02.4]} 65... a2 {[%clk 0:00:15.9]} 66. Qd4+ {[%clk
0:00:02.8]} 66... Kb3 {[%clk 0:00:17.2]} 67. Qd3+ {[%clk 0:00:03]} 67... Rc3
{[%clk 0:00:16.1]} 68. Qd5+ {[%clk 0:00:03.9]} 68... Kb2 {[%clk 0:00:17.4]} 69.
Qd4 {[%clk 0:00:03.3]} 69... c1=Q {[%clk 0:00:13.4]} 70. Qxb4+ {[%clk
0:00:04.3]} 70... Ka1 {[%clk 0:00:13.5]} 71. Kf5 {[%clk 0:00:02.6]} 71... Rc5+
{[%clk 0:00:12.8]} 72. Ke6 {[%clk 0:00:02.8]} 72... Qc4+ {[%clk 0:00:13.9]} 73.
Qxc4 {[%clk 0:00:02.4]} 73... Rxc4 {[%clk 0:00:15.8]} 74. h6 {[%clk 0:00:03.5]}
74... Rh4 {[%clk 0:00:16.3]} 75. Kf7 {[%clk 0:00:04.2]} 75... Rxh6 {[%clk
0:00:18.2]} 76. Kg7 {[%clk 0:00:05.4]} 76... Rh1 {[%clk 0:00:19.3]} 77. Kf6
{[%clk 0:00:06.2]} 77... Kb2 {[%clk 0:00:20.9]} 78. Kg5 {[%clk 0:00:07.5]} 78...
a1=Q {[%clk 0:00:21.9]} 79. Kg4 {[%clk 0:00:09.4]} 79... Qf1 {[%clk 0:00:21.7]}
80. Kg5 {[%clk 0:00:09.9]} 80... Qf7 {[%clk 0:00:20.1]} 81. Kg4 {[%clk
0:00:10.5]} 81... Rf1 {[%clk 0:00:20.6]} 82. Kg5 {[%clk 0:00:10.9]} 82... Qg6+
{[%clk 0:00:21]} 83. Kh4 {[%clk 0:00:10.7]} 83... Rh1# {[%clk 0:00:22.5]} 0-1